[Event "Titled Tuesday Blitz February 28 Early 2023"]
[White "Reprintsev, Alexander"]
[Black "Sadubayev, Airat"]
[WhiteFideId "14100541"]
[BlackFideId "13713264"]
[WhiteElo "2250"]
[BlackElo "2101"]
[Result "0-1"]
[Round "11"]
[TimeControl "180+2"]
[Date "2023.02.28"]
[WhiteClock "0:01:59"]
[BlackClock "0:01:37"]

1. e4 {[%clk 0:03:00]}  c6 {[%clk 0:02:58]} 2. Nc3 {[%clk 0:03:00]}  d5 {[%clk 0:02:59]} 3. Nf3 {[%clk 0:03:00]}  dxe4 {[%clk 0:02:59]} 4. Nxe4 {[%clk 0:03:00]}  Nf6 {[%clk 0:02:59]} 5. Qe2 {[%clk 0:03:00]}  Nxe4 {[%clk 0:02:59]} 6. Qxe4 {[%clk 0:03:00]}  Be6 {[%clk 0:02:59]} 7. Be2 {[%clk 0:02:51]}  Nd7 {[%clk 0:02:57]} 8. O-O {[%clk 0:02:50]}  Nf6 {[%clk 0:02:57]} 9. Qh4 {[%clk 0:02:50]}  Bg4 {[%clk 0:02:52]} 10. Re1 {[%clk 0:02:48]}  e6 {[%clk 0:02:51]} 11. h3 {[%clk 0:02:46]}  Bh5 {[%clk 0:02:46]} 12. d4 {[%clk 0:02:45]}  Be7 {[%clk 0:02:45]} 13. Bg5 {[%clk 0:02:44]}  Bg6 {[%clk 0:02:41]} 14. Ne5 {[%clk 0:02:44]}  O-O {[%clk 0:02:40]} 15. c3 {[%clk 0:02:38]}  Nd5 {[%clk 0:02:36]} 16. Bxe7 {[%clk 0:02:35]}  Qxe7 {[%clk 0:02:36]} 17. Nxg6 {[%clk 0:02:35]}  hxg6 {[%clk 0:02:35]} 18. Qg3 {[%clk 0:02:35]}  Qc7 {[%clk 0:02:30]} 19. Qxc7 {[%clk 0:02:26]}  Nxc7 {[%clk 0:02:30]} 20. g3 {[%clk 0:02:26]}  a5 {[%clk 0:02:28]} 21. f4 {[%clk 0:02:24]}  a4 {[%clk 0:02:26]} 22. a3 {[%clk 0:02:24]}  Rfd8 {[%clk 0:02:21]} 23. Bc4 {[%clk 0:02:23]}  Ra5 {[%clk 0:02:13]} 24. Kf2 {[%clk 0:02:22]}  c5 {[%clk 0:02:10]} 25. dxc5 {[%clk 0:02:21]}  Rxc5 {[%clk 0:02:09]} 26. Ba2 {[%clk 0:02:19]}  Kf8 {[%clk 0:01:57]} 27. Rad1 {[%clk 0:02:18]}  Rxd1 {[%clk 0:01:55]} 28. Rxd1 {[%clk 0:02:18]}  Ke7 {[%clk 0:01:55]} 29. Ke3 {[%clk 0:02:18]}  Nb5 {[%clk 0:01:49]} 30. h4 {[%clk 0:02:12]}  Nd6 {[%clk 0:01:44]} 31. Kf2 {[%clk 0:02:00]}  Rb5 {[%clk 0:01:38]} 32. Rd2 {[%clk 0:01:59]}  Ne4+ {[%clk 0:01:37]} 0-1


[Site "https://www.chess.com"]

[Event "Titled Tuesday Blitz February 28 Early 2023"]
[White "Orlov, Georgi"]
[Black "Buksa, Nataliya"]
[WhiteFideId "2011271"]
[BlackFideId "14123622"]
[WhiteElo "2652"]
[BlackElo "2316"]
[Result "0-1"]
[Round "11"]
[TimeControl "180+2"]
[Date "2023.02.28"]
[WhiteClock "0:00:07"]
[BlackClock "0:00:08"]

1. e4 {[%clk 0:03:00]}  c5 {[%clk 0:02:59]} 2. Nf3 {[%clk 0:03:00]}  Nc6 {[%clk 0:03:00]} 3. d4 {[%clk 0:02:59]}  cxd4 {[%clk 0:03:00]} 4. Nxd4 {[%clk 0:02:59]}  e5 {[%clk 0:03:01]} 5. Nb5 {[%clk 0:02:58]}  d6 {[%clk 0:03:01]} 6. N1c3 {[%clk 0:02:57]}  a6 {[%clk 0:03:00]} 7. Na3 {[%clk 0:02:57]}  Be7 {[%clk 0:03:00]} 8. Nc4 {[%clk 0:02:55]}  b5 {[%clk 0:02:59]} 9. Ne3 {[%clk 0:02:53]}  Nf6 {[%clk 0:02:59]} 10. Ned5 {[%clk 0:02:53]}  O-O {[%clk 0:02:57]} 11. Be3 {[%clk 0:02:47]}  Rb8 {[%clk 0:02:56]} 12. a3 {[%clk 0:02:46]}  Ng4 {[%clk 0:02:40]} 13. Nxe7+ {[%clk 0:02:41]}  Qxe7 {[%clk 0:02:39]} 14. Nd5 {[%clk 0:02:38]}  Qd8 {[%clk 0:02:30]} 15. Be2 {[%clk 0:02:28]}  Nxe3 {[%clk 0:02:29]} 16. Nxe3 {[%clk 0:02:27]}  Be6 {[%clk 0:02:27]} 17. c3 {[%clk 0:02:26]}  Ne7 {[%clk 0:02:25]} 18. Bf3 {[%clk 0:02:26]}  Qc7 {[%clk 0:01:58]} 19. Qd2 {[%clk 0:02:15]}  Rfd8 {[%clk 0:01:54]} 20. O-O {[%clk 0:02:10]}  Rd7 {[%clk 0:01:52]} 21. a4 {[%clk 0:02:04]}  Rbd8 {[%clk 0:01:43]} 22. axb5 {[%clk 0:02:03]}  axb5 {[%clk 0:01:44]} 23. Rfd1 {[%clk 0:01:54]}  h6 {[%clk 0:01:34]} 24. Qe2 {[%clk 0:01:46]}  Qc5 {[%clk 0:01:11]} 25. Ra5 {[%clk 0:01:38]}  Rb8 {[%clk 0:01:03]} 26. Qd2 {[%clk 0:01:33]}  Nc6 {[%clk 0:00:55]} 27. b4 {[%clk 0:01:25]}  Qb6 {[%clk 0:00:55]} 28. Ra3 {[%clk 0:01:25]}  Ne7 {[%clk 0:00:55]} 29. Rda1 {[%clk 0:01:24]}  Rc8 {[%clk 0:00:50]} 30. Ra6 {[%clk 0:01:22]}  Qc7 {[%clk 0:00:49]} 31. R1a3 {[%clk 0:01:22]}  Rcd8 {[%clk 0:00:46]} 32. Ra8 {[%clk 0:00:59]}  d5 {[%clk 0:00:36]} 33. exd5 {[%clk 0:00:57]}  Nxd5 {[%clk 0:00:36]} 34. Bxd5 {[%clk 0:00:56]}  Bxd5 {[%clk 0:00:32]} 35. Nxd5 {[%clk 0:00:55]}  Qd6 {[%clk 0:00:23]} 36. Rxd8+ {[%clk 0:00:41]}  Rxd8 {[%clk 0:00:23]} 37. Kf1 {[%clk 0:00:32]}  Qxd5 {[%clk 0:00:22]} 38. Qxd5 {[%clk 0:00:31]}  Rxd5 {[%clk 0:00:23]} 39. Ke2 {[%clk 0:00:32]}  f5 {[%clk 0:00:20]} 40. Ra7 {[%clk 0:00:29]}  Kh7 {[%clk 0:00:20]} 41. Rc7 {[%clk 0:00:26]}  Kg6 {[%clk 0:00:18]} 42. f3 {[%clk 0:00:23]}  Kf6 {[%clk 0:00:18]} 43. Rc6+ {[%clk 0:00:23]}  Kf7 {[%clk 0:00:19]} 44. h4 {[%clk 0:00:22]}  h5 {[%clk 0:00:15]} 45. Ke3 {[%clk 0:00:20]}  Ke7 {[%clk 0:00:15]} 46. Rg6 {[%clk 0:00:19]}  Kf7 {[%clk 0:00:15]} 47. Rb6 {[%clk 0:00:18]}  Ke7 {[%clk 0:00:15]} 48. g3 {[%clk 0:00:17]}  Kf7 {[%clk 0:00:15]} 49. Rc6 {[%clk 0:00:15]}  g6 {[%clk 0:00:14]} 50. c4 {[%clk 0:00:14]}  bxc4 {[%clk 0:00:13]} 51. Rxc4 {[%clk 0:00:15]}  Rb5 {[%clk 0:00:14]} 52. Kd3 {[%clk 0:00:15]}  Rb6 {[%clk 0:00:12]} 53. Kc3 {[%clk 0:00:15]}  Ke6 {[%clk 0:00:13]} 54. Rc5 {[%clk 0:00:15]}  Ra6 {[%clk 0:00:12]} 55. Ra5 {[%clk 0:00:11]}  Rc6+ {[%clk 0:00:08]} 56. Kb3 {[%clk 0:00:11]}  Rc1 {[%clk 0:00:06]} 57. Ra6+ {[%clk 0:00:08]}  Kd5 {[%clk 0:00:07]} 58. Rxg6 {[%clk 0:00:08]}  Rf1 {[%clk 0:00:07]} 59. b5 {[%clk 0:00:07]}  Rxf3+ {[%clk 0:00:08]} 60. Kb4 {[%clk 0:00:07]}  Rf1 {[%clk 0:00:08]} 61. b6 {[%clk 0:00:07]}  e4 {[%clk 0:00:08]} 0-1


[Site "https://www.chess.com"]

[Event "Titled Tuesday Blitz February 28 Early 2023"]
[White "Fiorito, Francisco"]
[Black "Matinian, Nikita"]
[WhiteFideId "180165"]
[BlackFideId "24129100"]
[WhiteElo "2341"]
[BlackElo "2422"]
[Result "0-1"]
[Round "11"]
[TimeControl "180+2"]
[Date "2023.02.28"]
[WhiteClock "0:00:24"]
[BlackClock "0:01:22"]

1. d4 {[%clk 0:03:00]}  Nf6 {[%clk 0:02:59]} 2. Nc3 {[%clk 0:03:00]}  d5 {[%clk 0:02:59]} 3. Bf4 {[%clk 0:03:00]}  g6 {[%clk 0:02:57]} 4. e3 {[%clk 0:02:59]}  c6 {[%clk 0:02:56]} 5. Be2 {[%clk 0:02:59]}  Qb6 {[%clk 0:02:52]} 6. Na4 {[%clk 0:02:53]}  Qd8 {[%clk 0:02:51]} 7. Nc3 {[%clk 0:02:52]}  Nbd7 {[%clk 0:02:47]} 8. h4 {[%clk 0:02:50]}  h5 {[%clk 0:02:47]} 9. Nf3 {[%clk 0:02:50]}  Ng4 {[%clk 0:02:42]} 10. Ng5 {[%clk 0:02:49]}  Bg7 {[%clk 0:02:39]} 11. Bxg4 {[%clk 0:02:46]}  hxg4 {[%clk 0:02:39]} 12. Qxg4 {[%clk 0:02:40]}  Ne5 {[%clk 0:02:39]} 13. Qe2 {[%clk 0:02:37]}  Nc4 {[%clk 0:02:39]} 14. Nd1 {[%clk 0:02:29]}  f6 {[%clk 0:02:30]} 15. Nf3 {[%clk 0:02:25]}  e5 {[%clk 0:02:27]} 16. dxe5 {[%clk 0:02:17]}  fxe5 {[%clk 0:02:28]} 17. Bg5 {[%clk 0:02:17]}  Qb6 {[%clk 0:02:28]} 18. c3 {[%clk 0:02:17]}  Bg4 {[%clk 0:02:26]} 19. Qc2 {[%clk 0:02:14]}  e4 {[%clk 0:02:22]} 20. Nd4 {[%clk 0:02:12]}  Ne5 {[%clk 0:02:12]} 21. O-O {[%clk 0:02:03]}  c5 {[%clk 0:01:59]} 22. Nb3 {[%clk 0:01:58]}  Rc8 {[%clk 0:01:45]} 23. Nd2 {[%clk 0:01:34]}  Qe6 {[%clk 0:01:40]} 24. c4 {[%clk 0:01:30]}  Bf3 {[%clk 0:01:36]} 25. gxf3 {[%clk 0:00:42]}  exf3 {[%clk 0:01:27]} 26. Kh2 {[%clk 0:00:31]}  Qg4 {[%clk 0:01:22]} 27. Rg1 {[%clk 0:00:24]}  Rxh4+ {[%clk 0:01:21]} 28. Bxh4 {[%clk 0:00:24]}  Qxh4# {[%clk 0:01:22]} 0-1


[Site "https://www.chess.com"]

[Event "Titled Tuesday Blitz February 28 Early 2023"]
[White "Md, Imran"]
[Black "Florescu, Codrut-Constantin"]
[WhiteFideId "25748580"]
[BlackFideId "1202200"]
[WhiteElo "2217"]
[BlackElo "2191"]
[Result "1-0"]
[Round "11"]
[TimeControl "180+2"]
[Date "2023.02.28"]
[WhiteClock "0:00:25"]
[BlackClock "0:00:06"]

1. c4 {[%clk 0:03:00]}  e6 {[%clk 0:02:59]} 2. Nf3 {[%clk 0:02:58]}  d5 {[%clk 0:03:00]} 3. e3 {[%clk 0:02:54]}  Nf6 {[%clk 0:03:00]} 4. Nc3 {[%clk 0:02:54]}  b6 {[%clk 0:03:00]} 5. b3 {[%clk 0:02:54]}  Bb7 {[%clk 0:03:00]} 6. Bb2 {[%clk 0:02:55]}  a6 {[%clk 0:03:00]} 7. cxd5 {[%clk 0:02:55]}  exd5 {[%clk 0:03:00]} 8. Rc1 {[%clk 0:02:55]}  Nbd7 {[%clk 0:03:00]} 9. Ne2 {[%clk 0:02:55]}  Bd6 {[%clk 0:02:59]} 10. Ned4 {[%clk 0:02:54]}  O-O {[%clk 0:02:53]} 11. Nf5 {[%clk 0:02:53]}  Nc5 {[%clk 0:02:43]} 12. g4 {[%clk 0:02:27]}  Nce4 {[%clk 0:02:08]} 13. d3 {[%clk 0:02:02]}  Nc5 {[%clk 0:01:37]} 14. g5 {[%clk 0:01:56]}  Ne8 {[%clk 0:01:36]} 15. Rg1 {[%clk 0:01:47]}  Ne6 {[%clk 0:01:29]} 16. h4 {[%clk 0:01:44]}  c5 {[%clk 0:01:27]} 17. Bh3 {[%clk 0:01:43]}  d4 {[%clk 0:01:23]} 18. exd4 {[%clk 0:01:31]}  Nf4 {[%clk 0:01:23]} 19. Bg4 {[%clk 0:01:16]}  cxd4 {[%clk 0:01:18]} 20. Kf1 {[%clk 0:01:07]}  Bc5 {[%clk 0:00:43]} 21. Ne5 {[%clk 0:00:53]}  Ng6 {[%clk 0:00:30]} 22. Nf3 {[%clk 0:00:44]}  Nd6 {[%clk 0:00:24]} 23. N5xd4 {[%clk 0:00:38]}  Qe7 {[%clk 0:00:15]} 24. h5 {[%clk 0:00:38]}  Nf4 {[%clk 0:00:14]} 25. Qd2 {[%clk 0:00:38]}  Nd5 {[%clk 0:00:13]} 26. Re1 {[%clk 0:00:36]}  Qd8 {[%clk 0:00:13]} 27. h6 {[%clk 0:00:33]}  Bb4 {[%clk 0:00:13]} 28. Qc1 {[%clk 0:00:26]}  Bxe1 {[%clk 0:00:13]} 29. hxg7 {[%clk 0:00:26]}  Re8 {[%clk 0:00:13]} 30. Nxe1 {[%clk 0:00:22]}  Qe7 {[%clk 0:00:13]} 31. Nef3 {[%clk 0:00:22]}  Nb4 {[%clk 0:00:10]} 32. Qd2 {[%clk 0:00:22]}  a5 {[%clk 0:00:09]} 33. Ne2 {[%clk 0:00:21]}  Rac8 {[%clk 0:00:08]} 34. Ned4 {[%clk 0:00:20]}  Bd5 {[%clk 0:00:06]} 35. a3 {[%clk 0:00:21]}  Nc6 {[%clk 0:00:06]} 36. Nxc6 {[%clk 0:00:21]}  Rxc6 {[%clk 0:00:06]} 37. Ne5 {[%clk 0:00:21]}  Rc7 {[%clk 0:00:05]} 38. f3 {[%clk 0:00:22]}  Nb5 {[%clk 0:00:05]} 39. Kf2 {[%clk 0:00:22]}  Qc5+ {[%clk 0:00:05]} 40. d4 {[%clk 0:00:22]}  Qc2 {[%clk 0:00:05]} 41. Rd1 {[%clk 0:00:23]}  Qxd2+ {[%clk 0:00:05]} 42. Rxd2 {[%clk 0:00:23]}  Bxb3 {[%clk 0:00:06]} 43. Bf5 {[%clk 0:00:23]}  Be6 {[%clk 0:00:05]} 44. Ng4 {[%clk 0:00:23]}  Nd6 {[%clk 0:00:06]} 45. Nh6+ {[%clk 0:00:23]}  Kxg7 {[%clk 0:00:07]} 46. d5+ {[%clk 0:00:24]}  Kf8 {[%clk 0:00:06]} 47. dxe6 {[%clk 0:00:23]}  fxe6 {[%clk 0:00:07]} 48. Rxd6 {[%clk 0:00:23]}  exf5 {[%clk 0:00:07]} 49. Rf6+ {[%clk 0:00:23]}  Ke7 {[%clk 0:00:07]} 50. Nxf5+ {[%clk 0:00:24]}  Kd8 {[%clk 0:00:07]} 51. Rd6+ {[%clk 0:00:25]}  Kc8 {[%clk 0:00:07]} 52. Rxb6 {[%clk 0:00:25]}  Rc2+ {[%clk 0:00:06]} 53. Kg3 {[%clk 0:00:25]}  Re5 {[%clk 0:00:06]} 54. Bxe5 {[%clk 0:00:25]} 1-0


[Site "https://www.chess.com"]

[Event "Titled Tuesday Blitz February 28 Early 2023"]
[White "Caspi, Israel"]
[Black "Lehtosaari, Mauri"]
[WhiteFideId "2807394"]
[BlackFideId "501999"]
[WhiteElo "2419"]
[BlackElo "2533"]
[Result "1-0"]
[Round "11"]
[TimeControl "180+2"]
[Date "2023.02.28"]
[WhiteClock "0:00:15"]
[BlackClock "0:00:26"]

1. d4 {[%clk 0:03:00]}  d5 {[%clk 0:02:59]} 2. c3 {[%clk 0:03:00]}  Nf6 {[%clk 0:02:53]} 3. Nf3 {[%clk 0:03:00]}  c6 {[%clk 0:02:49]} 4. Bf4 {[%clk 0:02:54]}  Bf5 {[%clk 0:02:47]} 5. Nh4 {[%clk 0:02:53]}  Bxb1 {[%clk 0:02:44]} 6. Rxb1 {[%clk 0:02:51]}  e6 {[%clk 0:02:44]} 7. Nf3 {[%clk 0:02:46]}  Nbd7 {[%clk 0:02:43]} 8. h3 {[%clk 0:02:43]}  Be7 {[%clk 0:02:42]} 9. e3 {[%clk 0:02:43]}  Qb6 {[%clk 0:02:38]} 10. b4 {[%clk 0:02:39]}  a5 {[%clk 0:02:34]} 11. b5 {[%clk 0:02:34]}  c5 {[%clk 0:02:34]} 12. Bd3 {[%clk 0:02:27]}  Rc8 {[%clk 0:02:31]} 13. O-O {[%clk 0:02:26]}  O-O {[%clk 0:02:31]} 14. a4 {[%clk 0:02:20]}  Rfe8 {[%clk 0:02:27]} 15. Qe2 {[%clk 0:02:12]}  Nf8 {[%clk 0:02:14]} 16. Ne5 {[%clk 0:02:11]}  Ng6 {[%clk 0:02:12]} 17. Bh2 {[%clk 0:02:11]}  Red8 {[%clk 0:02:09]} 18. f4 {[%clk 0:02:09]}  cxd4 {[%clk 0:02:04]} 19. cxd4 {[%clk 0:02:09]}  Rc3 {[%clk 0:02:03]} 20. Rbc1 {[%clk 0:02:06]}  Rdc8 {[%clk 0:02:03]} 21. Rxc3 {[%clk 0:02:06]}  Rxc3 {[%clk 0:02:04]} 22. f5 {[%clk 0:01:59]}  Nf8 {[%clk 0:01:53]} 23. g4 {[%clk 0:01:54]}  Ne4 {[%clk 0:01:46]} 24. Bxe4 {[%clk 0:01:53]}  dxe4 {[%clk 0:01:47]} 25. fxe6 {[%clk 0:01:54]}  f6 {[%clk 0:01:25]} 26. Nc4 {[%clk 0:01:28]}  Qxe6 {[%clk 0:01:20]} 27. Nxa5 {[%clk 0:01:27]}  Qd7 {[%clk 0:01:06]} 28. Nc4 {[%clk 0:00:55]}  Ng6 {[%clk 0:01:00]} 29. Bg3 {[%clk 0:00:54]}  Qc8 {[%clk 0:00:55]} 30. Nb6 {[%clk 0:00:49]}  Qe6 {[%clk 0:00:49]} 31. a5 {[%clk 0:00:38]}  Qb3 {[%clk 0:00:38]} 32. a6 {[%clk 0:00:26]}  bxa6 {[%clk 0:00:33]} 33. bxa6 {[%clk 0:00:26]}  Rxe3 {[%clk 0:00:31]} 34. a7 {[%clk 0:00:16]}  Rxe2 {[%clk 0:00:26]} 35. a8=Q+ {[%clk 0:00:16]}  Bf8 {[%clk 0:00:27]} 36. Qd5+ {[%clk 0:00:15]}  Kh8 {[%clk 0:00:26]} 37. Qxb3 {[%clk 0:00:15]} 1-0


[Site "https://www.chess.com"]

[Event "Titled Tuesday Blitz February 28 Early 2023"]
[White "Castellanos Villela, Alejandro"]
[Black "Derix, Bernhard"]
[WhiteFideId "3446379"]
[BlackFideId "4642368"]
[WhiteElo "2102"]
[BlackElo "2595"]
[Result "1-0"]
[Round "11"]
[TimeControl "180+2"]
[Date "2023.02.28"]
[WhiteClock "0:01:13"]
[BlackClock "0:00:19"]

1. e4 {[%clk 0:03:00]}  c5 {[%clk 0:02:59]} 2. Nf3 {[%clk 0:03:00]}  e6 {[%clk 0:02:59]} 3. g3 {[%clk 0:02:57]}  Nc6 {[%clk 0:02:55]} 4. Bg2 {[%clk 0:02:58]}  Nf6 {[%clk 0:02:50]} 5. Qe2 {[%clk 0:02:57]}  d5 {[%clk 0:02:43]} 6. exd5 {[%clk 0:02:56]}  Nxd5 {[%clk 0:02:43]} 7. O-O {[%clk 0:02:56]}  Be7 {[%clk 0:02:43]} 8. Rd1 {[%clk 0:02:56]}  O-O {[%clk 0:02:41]} 9. d4 {[%clk 0:02:56]}  Qb6 {[%clk 0:02:30]} 10. c4 {[%clk 0:02:47]}  Ndb4 {[%clk 0:02:09]} 11. dxc5 {[%clk 0:02:29]}  Bxc5 {[%clk 0:01:25]} 12. a3 {[%clk 0:02:28]}  Qa6 {[%clk 0:01:22]} 13. Nc3 {[%clk 0:02:10]}  e5 {[%clk 0:01:18]} 14. axb4 {[%clk 0:01:56]}  Qxa1 {[%clk 0:01:15]} 15. Be3 {[%clk 0:01:57]}  Qa6 {[%clk 0:00:47]} 16. Bxc5 {[%clk 0:01:57]}  Re8 {[%clk 0:00:46]} 17. b5 {[%clk 0:01:57]}  Qa5 {[%clk 0:00:47]} 18. b4 {[%clk 0:01:43]}  Nxb4 {[%clk 0:00:46]} 19. Qb2 {[%clk 0:01:29]}  Nc6 {[%clk 0:00:25]} 20. Ra1 {[%clk 0:01:27]}  Qc7 {[%clk 0:00:20]} 21. bxc6 {[%clk 0:01:27]}  bxc6 {[%clk 0:00:20]} 22. Ne4 {[%clk 0:01:24]}  Bf5 {[%clk 0:00:20]} 23. Nd6 {[%clk 0:01:22]}  Reb8 {[%clk 0:00:20]} 24. Qxe5 {[%clk 0:01:22]}  Be6 {[%clk 0:00:21]} 25. Nd4 {[%clk 0:01:16]}  Bd7 {[%clk 0:00:20]} 26. Qe7 {[%clk 0:01:15]}  Rf8 {[%clk 0:00:19]} 27. Bxc6 {[%clk 0:01:13]} 1-0


[Site "https://www.chess.com"]

[Event "Titled Tuesday Blitz February 28 Early 2023"]
[White "Abdilkhair, Abilmansur"]
[Black "Aldokhin, Ivan"]
[WhiteFideId "13716417"]
[BlackFideId "24115720"]
[WhiteElo "2216"]
[BlackElo "2322"]
[Result "0-1"]
[Round "11"]
[TimeControl "180+2"]
[Date "2023.02.28"]
[WhiteClock "0:00:02"]
[BlackClock "0:00:04"]

1. d4 {[%clk 0:03:00]}  Nf6 {[%clk 0:02:45]} 2. c4 {[%clk 0:03:00]}  g6 {[%clk 0:02:44]} 3. Nc3 {[%clk 0:03:00]}  Bg7 {[%clk 0:02:43]} 4. g3 {[%clk 0:02:52]}  d6 {[%clk 0:02:43]} 5. Bg2 {[%clk 0:02:52]}  O-O {[%clk 0:02:44]} 6. Nf3 {[%clk 0:02:52]}  Bf5 {[%clk 0:02:42]} 7. O-O {[%clk 0:02:51]}  Ne4 {[%clk 0:02:41]} 8. Nh4 {[%clk 0:02:45]}  Nxc3 {[%clk 0:02:41]} 9. bxc3 {[%clk 0:02:46]}  Bc8 {[%clk 0:02:41]} 10. Rb1 {[%clk 0:02:43]}  c6 {[%clk 0:02:41]} 11. Ba3 {[%clk 0:02:28]}  Na6 {[%clk 0:02:35]} 12. Qa4 {[%clk 0:02:23]}  Nc7 {[%clk 0:02:16]} 13. c5 {[%clk 0:02:22]}  d5 {[%clk 0:02:08]} 14. Bc1 {[%clk 0:02:06]}  Nb5 {[%clk 0:01:52]} 15. Qb3 {[%clk 0:01:58]}  Qa5 {[%clk 0:01:43]} 16. Bb2 {[%clk 0:01:41]}  b6 {[%clk 0:01:37]} 17. a4 {[%clk 0:01:36]}  Nc7 {[%clk 0:01:37]} 18. Ba3 {[%clk 0:01:31]}  b5 {[%clk 0:01:32]} 19. axb5 {[%clk 0:01:23]}  Nxb5 {[%clk 0:01:31]} 20. Bb4 {[%clk 0:01:22]}  Qc7 {[%clk 0:01:30]} 21. e4 {[%clk 0:01:00]}  a5 {[%clk 0:01:13]} 22. Ba3 {[%clk 0:01:00]}  a4 {[%clk 0:01:13]} 23. Qb2 {[%clk 0:00:57]}  Nxa3 {[%clk 0:00:56]} 24. Qxa3 {[%clk 0:00:57]}  g5 {[%clk 0:00:55]} 25. Nf3 {[%clk 0:00:50]}  h6 {[%clk 0:00:42]} 26. exd5 {[%clk 0:00:31]}  cxd5 {[%clk 0:00:42]} 27. Rfe1 {[%clk 0:00:30]}  e6 {[%clk 0:00:25]} 28. h4 {[%clk 0:00:14]}  Bf6 {[%clk 0:00:20]} 29. hxg5 {[%clk 0:00:14]}  hxg5 {[%clk 0:00:21]} 30. Qc1 {[%clk 0:00:13]}  Qd8 {[%clk 0:00:14]} 31. Ne5 {[%clk 0:00:09]}  Kg7 {[%clk 0:00:08]} 32. Ng4 {[%clk 0:00:07]}  Ba6 {[%clk 0:00:07]} 33. Ra1 {[%clk 0:00:06]}  Bd3 {[%clk 0:00:05]} 34. Qe3 {[%clk 0:00:05]}  Bf5 {[%clk 0:00:04]} 35. Ne5 {[%clk 0:00:02]}  a3 {[%clk 0:00:04]} 36. g4 {[%clk 0:00:03]}  Bg6 {[%clk 0:00:03]} 37. f4 {[%clk 0:00:03]}  gxf4 {[%clk 0:00:03]} 38. Qxf4 {[%clk 0:00:04]}  Bg5 {[%clk 0:00:04]} 39. Qg3 {[%clk 0:00:04]}  Bh4 {[%clk 0:00:03]} 40. Qf4 {[%clk 0:00:03]}  Bxe1 {[%clk 0:00:04]} 41. Rxe1 {[%clk 0:00:04]}  a2 {[%clk 0:00:04]} 42. Ra1 {[%clk 0:00:03]}  Qf6 {[%clk 0:00:04]} 43. Qxf6+ {[%clk 0:00:03]}  Kxf6 {[%clk 0:00:05]} 44. Nd7+ {[%clk 0:00:03]}  Ke7 {[%clk 0:00:04]} 45. Nxf8 {[%clk 0:00:04]}  Kxf8 {[%clk 0:00:04]} 46. c6 {[%clk 0:00:04]}  Bb1 {[%clk 0:00:04]} 47. Kf2 {[%clk 0:00:03]}  Rc8 {[%clk 0:00:04]} 48. Ke3 {[%clk 0:00:02]}  Rxc6 {[%clk 0:00:04]} 49. Kd2 {[%clk 0:00:03]}  Ke7 {[%clk 0:00:04]} 50. Bf1 {[%clk 0:00:02]}  Kf6 {[%clk 0:00:04]} 51. Bd3 {[%clk 0:00:02]}  Rb6 {[%clk 0:00:04]} 0-1


[Site "https://www.chess.com"]

[Event "Titled Tuesday Blitz February 28 Early 2023"]
[White "Postma, Dinant"]
[Black "Seletsky, Grigory"]
[WhiteFideId "1018612"]
[BlackFideId "14112191"]
[WhiteElo "2589"]
[BlackElo "2490"]
[Result "1-0"]
[Round "11"]
[TimeControl "180+2"]
[Date "2023.02.28"]
[WhiteClock "0:01:15"]
[BlackClock "0:00:36"]

1. b3 {[%clk 0:02:59]}  e5 {[%clk 0:02:56]} 2. Bb2 {[%clk 0:02:59]}  d6 {[%clk 0:02:57]} 3. c4 {[%clk 0:02:58]}  Nc6 {[%clk 0:02:57]} 4. e3 {[%clk 0:02:59]}  g6 {[%clk 0:02:55]} 5. d3 {[%clk 0:02:56]}  Bg7 {[%clk 0:02:55]} 6. Nd2 {[%clk 0:02:56]}  f5 {[%clk 0:02:55]} 7. Ngf3 {[%clk 0:02:54]}  Nf6 {[%clk 0:02:56]} 8. g3 {[%clk 0:02:48]}  O-O {[%clk 0:02:56]} 9. Bg2 {[%clk 0:02:48]}  h6 {[%clk 0:02:57]} 10. O-O {[%clk 0:02:48]}  g5 {[%clk 0:02:57]} 11. Ne1 {[%clk 0:02:43]}  f4 {[%clk 0:02:53]} 12. Nc2 {[%clk 0:02:41]}  Qe8 {[%clk 0:02:39]} 13. Ne4 {[%clk 0:02:37]}  Qg6 {[%clk 0:02:32]} 14. Nxf6+ {[%clk 0:02:15]}  Bxf6 {[%clk 0:02:29]} 15. b4 {[%clk 0:02:07]}  g4 {[%clk 0:02:20]} 16. Bd5+ {[%clk 0:02:03]}  Kh8 {[%clk 0:02:18]} 17. b5 {[%clk 0:01:58]}  Ne7 {[%clk 0:02:15]} 18. exf4 {[%clk 0:01:57]}  exf4 {[%clk 0:02:10]} 19. Be4 {[%clk 0:01:52]}  Bf5 {[%clk 0:01:54]} 20. Bxf6+ {[%clk 0:01:47]}  Rxf6 {[%clk 0:01:52]} 21. Bxb7 {[%clk 0:01:47]}  Rb8 {[%clk 0:01:51]} 22. Re1 {[%clk 0:01:37]}  Rxb7 {[%clk 0:01:37]} 23. Rxe7 {[%clk 0:01:36]}  Bxd3 {[%clk 0:01:29]} 24. Nb4 {[%clk 0:01:34]}  Bxc4 {[%clk 0:01:11]} 25. Rc1 {[%clk 0:01:25]}  Bxb5 {[%clk 0:00:53]} 26. Nd5 {[%clk 0:01:22]}  Re6 {[%clk 0:00:36]} 27. Nxf4 {[%clk 0:01:15]} 1-0


[Site "https://www.chess.com"]